bitfinex-derivatives/quotes_SOLF0:USTF0_20260127
["timestamp","ask_amount","ask_price","bid_price","bid_amount"]
[1769479668904,10.57346533,124.71,124.66,5.80248573]
[1769479669202,3.34916533,124.71,124.66,5.80248573]
[1769479671205,3.34916533,124.71,124.67,2.35758444]
[1769479673210,3.34916533,124.71,124.67,5.71977009]
[1769479674004,3.34916533,124.71,124.67,3.36218565]
[1769479677814,3.34916533,124.71,124.65,333.06747009]
[1769479678918,5.70674977,124.71,124.65,323.48218565]
[1769479679117,3.27914104,124.7,124.65,323.48218565]
[1769479680022,10.50404104,124.7,124.65,323.48218565]
[1769479680317,3.27914104,124.69,124.65,320.12]
[1769479680521,3.27914104,124.69,124.63,12.94807009]
[1769479681017,3.27914104,124.68,124.63,10.59048565]
[1769479681713,9.58308444,124.69,124.64,3.36218565]
[1769479681914,3.27914104,124.73,124.65,3.36218565]
[1769479682115,3.27914104,124.72,124.66,5.71977009]
[1769479682318,3.27914104,124.72,124.67,2.35758444]
[1769479682512,10.50304104,124.72,124.67,2.35758444]
[1769479682711,3.27914104,124.74,124.68,5.71977009]
[1769479682912,3.27914104,124.74,124.69,2.35758444]
[1769479683607,10.50234104,124.73,124.69,2.35758444]
[1769479683812,10.50234104,124.73,124.68,5.71977009]
[1769479691817,3.27914104,124.73,124.68,5.71977009]
[1769479692013,5.63672548,124.74,124.69,3.36218565]
[1769479693024,3.27914104,124.74,124.69,3.36218565]
[1769479693224,3.27914104,124.74,124.69,5.71977009]
[1769479693623,3.27914104,124.74,124.69,5.7205997]
[1769479695015,3.27914104,124.74,124.69,3.36218565]
[1769479698326,7.2224,124.75,124.7,5.7205997]
[1769479698514,7.2224,124.75,124.71,3.36218565]
[1769479698918,10.54332882,124.75,124.71,3.36218565]
[1769479699224,10.54332882,124.75,124.64,112.4382]
[1769479699225,5.67934287,124.72,124.67,3.3678475]
[1769479699425,2.35841405,124.71,124.67,3.3678475]
[1769479700818,5.67934287,124.72,124.67,3.3678475]
[1769479704935,3.32092882,124.72,124.67,3.3678475]
[1769479705933,7.2232,124.73,124.68,3.28673982]
[1769479706129,5.90494872,124.74,124.68,3.28673982]
[1769479706633,3.54653467,124.74,124.68,5.64515387]
[1769479707631,5.90494872,124.74,124.68,3.28673982]
[1769479709034,13.12764872,124.74,124.68,3.28673982]
[1769479709437,5.90494872,124.73,124.68,3.28673982]
[1769479713347,3.54653467,124.71,124.66,3.28673982]
[1769479713541,5.90494872,124.71,124.66,3.28673982]
[1769479714744,3.54653467,124.71,124.66,3.28673982]
[1769479719051,13.12844872,124.73,124.67,3.28673982]
[1769479719448,3.54653467,124.73,124.68,3.28673982]
[1769479723660,10.76973467,124.73,124.68,3.28673982]
[1769479724158,13.12814872,124.73,124.68,3.28673982]
[1769479724361,5.90494872,124.73,124.68,3.28673982]
[1769479725761,3.54653467,124.73,124.68,3.28673982]
[1769479740583,5.57032559,124.75,124.69,3.36025289]
[1769479740978,3.21191154,124.74,124.69,3.36025289]
[1769479746481,3.21191154,124.74,124.69,5.71866694]
[1769479748790,3.21191154,124.74,124.69,3.36025289]
[1769479750490,3.21191154,124.74,124.69,5.71866694]
[1769479752788,3.21191154,124.74,124.69,3.36025289]
[1769479757800,5.57042684,124.74,124.69,3.36025289]
[1769479760604,3.21550496,124.73,124.68,7.2259]
[1769479760998,3.21550496,124.73,124.68,10.50876606]
[1769479761903,5.57402026,124.73,124.68,3.28286606]
[1769479762103,3.21550496,124.72,124.67,14.75375717]
[1769479762303,5.57402026,124.72,124.66,25.26342323]
[1769479764404,5.57402026,124.72,124.67,3.28286606]
[1769479764707,3.21550496,124.72,124.67,3.28286606]
[1769479772708,5.57402026,124.72,124.67,3.28286606]
[1769479777821,3.21550496,124.72,124.67,3.28286606]
[1769479778017,3.21550496,124.71,124.66,7.2268]
[1769479778417,3.21550496,124.71,124.66,10.50966606]
[1769479783522,3.21550496,124.71,124.67,3.28286606]
[1769479785018,10.43930496,124.72,124.67,3.28286606]
[1769479785727,3.21550496,124.72,124.67,3.28286606]
[1769479795730,5.57402026,124.72,124.67,3.28286606]
[1769479796334,3.43665675,124.71,124.67,3.28286606]
[1769479797628,5.79517205,124.7,124.65,18.15918991]
[1769479797837,3.43665675,124.68,124.64,14.75375717]
[1769479798133,5.79517205,124.68,124.63,18.15918991]
[1769479798935,5.79517205,124.67,124.62,14.75375717]
[1769479799134,5.79517205,124.67,124.62,3.40543274]
[1769479799328,3.43665675,124.67,124.62,3.40543274]
[1769479800731,9.5840153,124.69,124.64,3.40543274]
[1769479800732,3.43665675,124.69,124.64,3.40543274]
[1769479801744,3.43665675,124.67,124.62,3.40543274]
[1769479802423,5.79517205,124.67,124.62,3.40543274]
[1769479805236,3.43665675,124.67,124.62,3.40543274]
[1769479806839,5.79517205,124.67,124.62,3.40543274]
[1769479807036,5.79517205,124.66,124.6,3.40543274]
[1769479808036,3.43665675,124.65,124.6,3.40543274]
[1769479808237,3.43665675,124.63,124.58,3.40543274]
[1769479808541,3.43665675,124.63,124.56,3.40543274]
[1769479808542,5.79517205,124.62,124.56,3.40543274]
[1769479808943,3.43665675,124.61,124.56,3.40543274]
[1769479809540,5.79517205,124.61,124.56,3.40543274]
[1769479811430,3.43665675,124.6,124.55,304.76]
[1769479811839,5.79517205,124.59,124.54,3.40543274]
[1769479812835,3.43665675,124.59,124.54,5.76394804]
[1769479815542,3.43665675,124.59,124.54,5.76970507]
[1769479819752,10.55292868,124.61,124.55,5.57811133]
[1769479820051,10.55292868,124.61,124.56,3.213839]
[1769479820751,3.2991031,124.6,124.56,3.213839]
[1769479821052,3.2991031,124.6,124.55,2.36427233]
[1769479823044,3.2991031,124.6,124.55,5.85304883]
[1769479825454,10.5284031,124.63,124.57,3.4887765]
[1769479825649,3.2991031,124.62,124.57,5.85304883]
[1769479828159,3.2991031,124.62,124.57,3.4887765]
[1769479829258,10.5286031,124.62,124.57,3.4887765]
[1769479829565,12.89287543,124.62,124.57,3.4887765]
[1769479830362,3.2991031,124.6,124.55,3.4887765]
[1769479833170,3.2991031,124.59,124.53,5.85304883]
[1769479833361,5.66337543,124.59,124.53,3.4887765]
[1769479833559,3.2991031,124.59,124.53,5.85304883]
[1769479834662,3.2991031,124.59,124.53,13.08774883]
[1769479834860,3.2991031,124.59,124.54,3.4887765]
[1769479845274,3.2991031,124.59,124.54,5.85304883]
[1769479848180,3.2991031,124.59,124.54,3.4887765]
[1769479850680,3.2991031,124.59,124.53,9.59897233]
[1769479850681,3.5203069,124.62,124.57,5.88847993]
[1769479850881,3.5203069,124.62,124.57,3.5242076]
[1769479851378,3.5203069,124.61,124.55,323.9642076]
[1769479851579,3.5203069,124.59,124.53,5.88847993]
[1769479851884,3.5203069,124.59,124.54,3.5242076]
[1769479855079,3.5203069,124.59,124.54,5.88847993]
[1769479855282,7.2298,124.62,124.57,3.5242076]
[1769479855482,7.2298,124.62,124.57,5.88847993]
[1769479855985,10.7501069,124.62,124.57,5.88847993]
[1769479856285,3.5203069,124.62,124.57,5.88847993]
[1769479860482,3.5203069,124.62,124.57,3.5242076]
[1769479862085,3.5203069,124.62,124.57,5.88847993]
[1769479864285,3.5203069,124.62,124.57,3.5242076]
[1769479866983,3.5203069,124.61,124.55,5.88847993]
[1769479867388,5.88457923,124.61,124.55,3.5242076]
[1769479867589,3.5203069,124.6,124.55,3.5242076]
[1769479869687,5.88457923,124.6,124.53,331.1784076]
[1769479869891,3.5203069,124.59,124.53,331.1784076]
[1769479872693,3.5203069,124.59,124.54,3.5242076]
[1769479874094,9.59497233,124.6,124.54,3.5242076]
[1769479874292,7.2307,124.6,124.54,3.5242076]
[1769479874493,7.2307,124.6,124.55,3.5242076]
[1769479874804,112.4528,124.63,124.48,9.29316983]
[1769479874805,0.2466756,124.54,124.48,9.29316983]
[1769479875094,2.61094793,124.5,124.45,3.5242076]
[1769479875391,2.36427233,124.48,124.4,98.38]
[1769479875597,3.64345107,124.48,124.4,100.74427233]
[1769479875892,1.27917874,124.47,124.4,98.38]
[1769479876297,2.36427233,124.48,124.36,112.691]
[1769479876298,1.27917874,124.48,124.37,112.6839]
[1769479876486,2.36427233,124.46,124.38,2.36427233]
[1769479876684,3.64345107,124.44,124.36,322.80427233]
[1769479876891,3.64345107,124.44,124.38,2.36427233]
[1769479877094,1.27917874,124.44,124.38,2.36427233]
[1769479877294,1.27917874,124.44,124.38,3.5242076]
[1769479877598,3.64983602,124.44,124.38,3.5242076]
[1769479878296,1.27917874,124.44,124.38,3.5242076]
[1769479878996,1.27917874,124.44,124.38,5.89486488]
[1769479879993,1.27430288,124.46,124.4,2.37065728]
[1769479880195,1.27430288,124.46,124.39,5.84490324]
[1769479880399,1.27430288,124.46,124.4,2.37065728]
[1769479881100,1.27430288,124.46,124.36,320.44]
[1769479881101,121.09344934,124.49,124.42,5.65084858]
[1769479881295,121.09344934,124.49,124.43,2.37065728]
[1769479881496,1.27444934,124.48,124.43,2.37065728]
[1769479884201,8.51064934,124.51,124.47,5.728e-05]
[1769479884402,8.51064934,124.51,124.46,2.37065728]
[1769479884603,1.27444934,124.5,124.45,3.2801913]
[1769479885303,1.27444934,124.5,124.43,2.37065728]
[1769479885304,8.51114934,124.5,124.43,5.65084858]
[1769479885500,1.27444934,124.49,124.43,3.2801913]
[1769479885705,1.27444934,124.47,124.41,86.5601913]
[1769479885907,1.27444934,124.47,124.42,2.37065728]
[1769479886803,1.27444934,124.47,124.41,5.65084858]
[1769479891199,3.64510662,124.47,124.41,3.2801913]
[1769479891509,2.37065728,124.45,124.39,3.2801913]
[1769479892598,2.37065728,124.41,124.35,3.2801913]
[1769479892904,2.37065728,124.39,124.35,3.2801913]
[1769479893208,10.88790662,124.4,124.33,5.65084858]
[1769479893408,2.37065728,124.39,124.33,3.2801913]
[1769479893612,2.37065728,124.38,124.33,3.2801913]
[1769479894300,2.37065728,124.37,124.31,3.2801913]
[1769479895310,10.88880662,124.38,124.31,3.2801913]
[1769479895615,8.51714934,124.4,124.33,3.2801913]
[1769479895808,3.64510662,124.4,124.33,3.2801913]
[1769479896505,2.37065728,124.39,124.33,3.2801913]
[1769479896711,1.27444934,124.4,124.31,5.65084858]
[1769479896712,3.64510662,124.38,124.31,5.65084858]
[1769479896906,2.37065728,124.37,124.31,3.2801913]
[1769479897808,2.37065728,124.36,124.31,3.2801913]
[1769479898202,2.37065728,124.37,124.31,3.2801913]
[1769479899615,10.88890662,124.38,124.31,3.2801913]
[1769479900314,1.27444934,124.36,124.3,2.37065728]
[1769479900617,1.27444934,124.36,124.3,5.65084858]
[1769479906225,8.51684934,124.4,124.31,7.2473]
[1769479906430,10.88750662,124.4,124.34,3.2801913]
[1769479907630,8.51684934,124.4,124.34,3.2801913]
[1769479908030,8.51684934,124.4,124.34,5.65084858]
[1769479908930,8.51684934,124.4,124.34,3.2801913]
[1769479912735,8.51684934,124.4,124.34,5.65084858]
[1769479913836,8.51908101,124.42,124.35,3.34926351]
[1769479914033,10.88973829,124.42,124.35,5.71992079]
[1769479914236,3.64833829,124.44,124.37,5.71992079]
[1769479914539,1.27768101,124.44,124.38,2.37065728]
[1769479915232,7.2407,124.43,124.38,2.37065728]
[1769479915632,7.2407,124.43,124.37,5.71992079]
[1769479917233,7.2407,124.43,124.38,2.37065728]
[1769479918636,7.2407,124.43,124.37,5.71992079]
[1769479919840,7.2407,124.43,124.38,2.37065728]
[1769479920435,1.27768101,124.44,124.38,5.71992079]
[1769479920635,1.27768101,124.44,124.39,2.37065728]
[1769479923745,1.27768101,124.44,124.39,5.71992079]
[1769479924833,1.27768101,124.44,124.39,3.34926351]
[1769479928244,9.61045728,124.45,124.39,3.34926351]
[1769479928546,10.88813829,124.45,124.39,3.34926351]
[1769479929441,2.37065728,124.41,124.36,10.59416351]
[1769479930539,2.37065728,124.41,124.36,3.34926351]
[1769479930742,1.27768101,124.41,124.36,3.34926351]
[1769479930940,3.64833829,124.41,124.36,3.34926351]
[1769479932844,2.37065728,124.4,124.36,3.34926351]
[1769479933848,3.64833829,124.4,124.34,10.59556351]
[1769479934037,3.64833829,124.4,124.35,3.34926351]
[1769479934242,2.37065728,124.4,124.35,3.34926351]
[1769479939552,2.37194017,124.4,124.35,3.34926351]
[1769479941342,2.37194017,124.38,124.32,7.2474]
[1769479941549,2.37194017,124.35,124.31,3.3706744]
[1769479942546,2.37194017,124.34,124.31,3.3706744]
[1769479943454,2.37194017,124.35,124.31,3.3706744]
[1769479946457,2.37194017,124.36,124.31,3.3706744]
[1769479948161,2.37194017,124.35,124.31,3.3706744]
[1769479949162,3.64892093,124.37,124.31,3.3706744]
[1769479949462,2.37194017,124.36,124.31,3.3706744]
[1769479950358,2.37194017,124.37,124.31,3.3706744]
[1769479950555,9.61624017,124.38,124.31,3.3706744]
[1769479951261,2.37194017,124.37,124.31,3.3706744]
[1769479953461,9.61624017,124.38,124.32,3.3706744]
[1769479955664,3.64892093,124.39,124.32,12.99021457]
[1769479955859,1.27698076,124.38,124.32,12.99021457]
[1769479957966,1.27698076,124.38,124.33,3.3706744]
[1769479959764,1.27698076,124.38,124.33,5.74261457]
[1769479959969,7.2436,124.39,124.33,5.74261457]
[1769479960967,3.64892093,124.4,124.34,3.3706744]
[1769479961167,1.27698076,124.4,124.34,3.3706744]
[1769479961373,3.64892093,124.42,124.35,3.3706744]
[1769479961669,2.37194017,124.41,124.35,3.3706744]
[1769479961966,3.64892093,124.41,124.35,3.3706744]
[1769479962862,3.64892093,124.41,124.35,10.6164744]
[1769479967866,3.64892093,124.41,124.36,3.3706744]
[1769479970167,9.61424017,124.42,124.36,3.3706744]
[1769479970667,7.2423,124.42,124.36,5.74261457]
[1769479971268,7.2423,124.42,124.38,3.26152658]
[1769479972767,1.27611822,124.45,124.38,3.26152658]
[1769479972971,3.64805839,124.47,124.4,5.63346675]
[1769479973875,7.2397,124.46,124.4,5.63346675]
[1769479974871,7.2397,124.46,124.41,3.26152658]
[1769479975570,7.2388,124.48,124.43,3.26152658]
[1769479976070,1.27611822,124.49,124.44,5.63346675]
[1769479976273,7.2373,124.5,124.44,5.63346675]
[1769479976474,8.51341822,124.5,124.44,5.63346675]
[1769479977072,1.27611822,124.5,124.44,5.63346675]
[1769479977268,1.27611822,124.5,124.45,3.26152658]
[1769479977463,8.51261822,124.52,124.45,5.63346675]
[1769479977673,10.88455839,124.52,124.45,5.63346675]
[1769479977872,10.88455839,124.52,124.46,3.26152658]
[1769479978879,1.27611822,124.51,124.46,3.26152658]
[1769479980677,8.51291822,124.51,124.46,3.26152658]
[1769479981471,1.27611822,124.57,124.51,3.26152658]
[1769479981678,1.27611822,124.57,124.52,5.63346675]
[1769479981877,3.64805839,124.57,124.52,3.26152658]
[1769479982078,3.64805839,124.57,124.5,5.63346675]
[1769479982280,10.88135839,124.57,124.5,5.63346675]
[1769479982978,10.88135839,124.57,124.51,3.26152658]
[1769479983783,1.27611822,124.57,124.52,5.63346675]
[1769479984082,220.23211155,124.59,124.52,5.63346675]
[1769479984983,10.88035839,124.59,124.52,5.63346675]
[1769479986280,1.27611822,124.58,124.52,5.63346675]
[1769479986478,10.88075839,124.58,124.52,3.26152658]
[1769479987279,3.64805839,124.57,124.5,3.26152658]
[1769479988784,3.64805839,124.57,124.5,5.63346675]
[1769479988981,3.64805839,124.57,124.51,3.26152658]
[1769479991793,2.37194017,124.56,124.51,3.26152658]
[1769479992290,3.64805839,124.56,124.51,3.26152658]
[1769479992591,2.37194017,124.54,124.49,3.26152658]
[1769479996196,9.60594017,124.56,124.5,3.26152658]
[1769479996793,3.64805839,124.57,124.51,3.26152658]
[1769479997292,10.88145839,124.57,124.51,3.26152658]
[1769479997500,2.37194017,124.56,124.51,3.26152658]
[1769479999595,2.3657435,124.56,124.51,3.26152658]
[1769480001294,9.5985435,124.58,124.51,5.62727008]
[1769480001496,7.2328,124.58,124.52,5.60274425]
[1769480003792,9.5985435,124.58,124.52,3.23700075]
[1769480004697,7.2328,124.58,124.52,3.23700075]
[1769480005892,1.27105203,124.59,124.53,5.60274425]
[1769480006291,1.27105203,124.59,124.54,5.60274425]
[1769480006494,1.27105203,124.59,124.54,10.47180075]
[1769480007098,1.27105203,124.59,124.54,3.23700075]
[1769480010593,1.27105203,124.63,124.57,2.3657435]
[1769480011502,2.3657435,124.62,124.56,5.60274425]
[1769480011698,2.3657435,124.62,124.56,3.23700075]
[1769480012708,10.86649553,124.63,124.57,3.23700075]
[1769480013404,2.3657435,124.59,124.55,3.23700075]
[1769480014408,1.27105203,124.61,124.55,3.23700075]
[1769480014409,2.3657435,124.6,124.55,3.23700075]
[1769480017113,10.86769553,124.61,124.55,3.23700075]
[1769480018210,2.3657435,124.6,124.55,3.23700075]
[1769480019904,8.50195203,124.61,124.55,3.23700075]
[1769480019905,10.86769553,124.61,124.55,3.23700075]
[1769480020703,2.3657435,124.6,124.55,3.23700075]
[1769480026515,3.63679553,124.58,124.53,3.23700075]
[1769480026706,2.3657435,124.57,124.53,3.23700075]
[1769480027609,3.63679553,124.58,124.53,3.23700075]
[1769480028515,2.3657435,124.59,124.53,3.23700075]
[1769480030415,2.3657435,124.59,124.54,3.21954118]
[1769480031611,3.63679553,124.6,124.54,3.21954118]
[1769480031914,1.27105203,124.6,124.55,5.58528468]
[1769480033809,1.27105203,124.6,124.55,3.21954118]
[1769480036518,1.27563666,124.64,124.57,3.21954118]
[1769480036714,8.50473666,124.64,124.59,3.21954118]
[1769480041713,1.27563666,124.64,124.59,3.21954118]
[1769480042623,9.5943435,124.65,124.59,3.21954118]
[1769480042823,10.86998016,124.65,124.59,3.21954118]
[1769480043225,1.27563666,124.64,124.59,3.21954118]
[1769480047323,10.87058016,124.64,124.59,3.21954118]
[1769480055834,2.3657435,124.63,124.59,3.21954118]
[1769480056625,10.87058016,124.64,124.59,3.21954118]
[1769480061548,10.86771573,124.64,124.59,3.21954118]
[1769480066148,8.50483666,124.64,124.59,3.21954118]
[1769480066350,10.86771573,124.64,124.59,3.21954118]
[1769480066849,1.26677626,124.63,124.59,3.21954118]
[1769480079861,2.36287907,124.64,124.59,3.21954118]
[1769480080160,10.85865533,124.65,124.59,3.21954118]
[1769480083656,8.49577626,124.65,124.59,3.21954118]
[1769480083956,10.85865533,124.65,124.59,3.21954118]
[1769480084459,1.26677626,124.64,124.59,3.21954118]
[1769480092761,2.36287907,124.65,124.6,3.38907233]
[1769480092960,3.6314558,124.66,124.6,3.38907233]
[1769480101467,2.36287907,124.65,124.6,3.38907233]
[1769480103064,2.36287907,124.63,124.58,3.38907233]
[1769480103268,2.36287907,124.62,124.58,3.38907233]
[1769480106465,2.36287907,124.61,124.56,3.38907233]
[1769480106860,3.6314558,124.62,124.56,3.38907233]
[1769480107663,3.6314558,124.62,124.57,3.38907233]
[1769480108167,1.39649672,124.69,124.58,2.36287907]
[1769480108373,3.6314558,124.67,124.61,3.38907233]
[1769480109874,8.49617673,124.67,124.62,3.38907233]
[1769480111771,1.26857673,124.67,124.62,3.38907233]
[1769480114177,10.8588558,124.67,124.62,3.38907233]
[1769480115778,8.49517673,124.69,124.62,3.38907233]
[1769480115983,10.8580558,124.69,124.63,3.38907233]
[1769480117078,2.36287907,124.73,124.67,3.38907233]
[1769480117279,2.36287907,124.73,124.67,5.7519514]
[1769480117475,3.6314558,124.73,124.67,5.7519514]
[1769480117782,1.26857673,124.73,124.67,3.38907233]
[1769480118082,8.49267673,124.73,124.67,3.38907233]
[1769480118284,10.8555558,124.73,124.67,3.38907233]
[1769480123784,10.85196814,124.73,124.67,3.38907233]
[1769480131388,2.35929141,124.72,124.67,3.38907233]
[1769480134195,10.85196814,124.73,124.67,3.38907233]
[1769480137391,2.35929141,124.74,124.68,3.48046523]
[1769480137889,3.62890296,124.74,124.68,3.48046523]
[1769480139896,3.62890296,124.74,124.68,10.70706523]
[1769480141298,3.62890296,124.74,124.69,3.48046523]
[1769480141597,10.85220296,124.74,124.69,3.48046523]
[1769480142092,2.35929141,124.73,124.69,3.48046523]
[1769480142297,2.35929141,124.72,124.67,3.48046523]
[1769480142499,2.35929141,124.71,124.67,3.48046523]
[1769480142800,2.35929141,124.68,124.64,3.48046523]
[1769480143096,2.35929141,124.67,124.64,3.48046523]
[1769480144796,1.26961155,124.7,124.64,3.48046523]
[1769480145003,2.35929141,124.68,124.64,3.48046523]
[1769480145703,3.62890296,124.68,124.64,3.48046523]
[1769480145897,2.35929141,124.66,124.61,7.2303]
[1769480147003,3.62890296,124.68,124.62,7.2301]
[1769480147595,2.35929141,124.69,124.63,7.2296]
[1769480148005,2.35929141,124.69,124.64,3.48046523]
[1769480148399,5.59816899,124.7,124.64,3.48046523]
[1769480148998,2.35929141,124.71,124.65,3.41880509]
[1769480149309,5.82132509,124.72,124.65,5.7780965]
[1769480149505,5.82132509,124.71,124.65,5.7780965]
[1769480149910,5.82132509,124.71,124.65,13.0064965]
[1769480150805,3.46203368,124.73,124.67,3.41880509]
[1769480151010,3.46203368,124.73,124.68,3.41880509]
[1769480151211,3.46203368,124.73,124.68,5.7780965]
[1769480152508,3.46203368,124.73,124.67,7.227]
[1769480152710,3.46203368,124.73,124.68,3.41880509]
[1769480152912,3.46203368,124.73,124.68,5.7780965]
[1769480153311,3.46203368,124.73,124.67,7.227]
[1769480153510,3.46203368,124.73,124.67,9.58629141]
[1769480154414,3.46203368,124.73,124.67,7.227]
[1769480154619,3.46203368,124.73,124.68,2.35929141]
[1769480155521,3.46203368,124.72,124.66,3.41880509]
[1769480155725,3.46203368,124.72,124.67,2.35929141]
[1769480157819,3.46203368,124.72,124.67,9.58659141]
[1769480160222,3.46203368,124.72,124.67,13.0053965]
[1769480162630,13.04462509,124.74,124.67,13.0053965]
[1769480163729,3.46203368,124.74,124.68,9.58589141]
[1769480163925,3.46203368,124.74,124.68,7.2266]
[1769480166626,13.04462509,124.74,124.68,7.2266]
[1769480167730,10.68533368,124.74,124.68,7.2266]
[1769480168236,10.68533368,124.74,124.68,10.64540509]
[1769480169033,3.46203368,124.72,124.67,3.41880509]
[1769480185040,7.2239,124.73,124.68,3.55383332]
[1769480185239,10.55740351,124.73,124.68,3.55383332]
[1769480187339,3.33350351,124.72,124.68,3.55383332]
[1769480191954,3.33350351,124.72,124.66,3.55383332]
[1769480192151,5.69294251,124.7,124.64,10.78233332]
[1769480192343,5.69294251,124.7,124.65,3.55383332]
[1769480196349,5.83167083,124.72,124.66,3.23405701]
[1769480198253,3.47223183,124.72,124.67,5.59349601]
[1769480198452,3.47223183,124.72,124.67,3.23405701]
[1769480199356,3.47223183,124.67,124.59,18.19244747]
[1769480199552,2.359439,124.64,124.59,3.23405701]
[1769480200049,2.359439,124.65,124.59,3.23405701]
[1769480200857,2.359439,124.65,124.6,3.23405701]
[1769480203453,5.83167083,124.65,124.6,3.23405701]
[1769480205161,3.47223183,124.65,124.57,3.23405701]
[1769480205362,5.83167083,124.63,124.57,3.23405701]
[1769480206061,2.359439,124.62,124.57,3.23405701]
[1769480206561,2.359439,124.64,124.58,3.23405701]
[1769480206755,5.83167083,124.65,124.59,3.23405701]
[1769480207452,13.06037083,124.65,124.59,3.23405701]
[1769480209766,10.70093183,124.65,124.59,3.23405701]
[1769480210160,13.0553744,124.67,124.6,3.46440595]
[1769480210360,13.0553744,124.67,124.61,3.46440595]
[1769480210563,3.4683354,124.67,124.61,3.46440595]
[1769480210964,3.4683354,124.67,124.61,5.82384495]
[1769480213070,3.4683354,124.67,124.62,5.82384495]
[1769480214767,3.4683354,124.67,124.62,3.46440595]
[1769480215360,3.4683354,124.67,124.6,13.05504495]
[1769480215559,3.4683354,124.67,124.61,5.82384495]
[1769480219562,3.4683354,124.67,124.62,3.46440595]
[1769480219869,10.6951354,124.68,124.63,5.82384495]
[1769480220367,10.6942354,124.7,124.64,5.82384495]
[1769480221856,10.6942354,124.7,124.65,2.359439]
[1769480223068,3.4683354,124.7,124.66,2.359439]
[1769480223863,10.6940354,124.7,124.65,3.46440595]
[1769480225475,3.4683354,124.7,124.65,3.46440595]
[1769480227666,3.4683354,124.7,124.65,5.82384495]
[1769480228873,3.4683354,124.7,124.65,3.46440595]
[1769480231070,5.8277744,124.7,124.65,3.46440595]
[1769480233783,3.4683354,124.7,124.65,3.46440595]
[1769480239783,10.6939354,124.7,124.65,3.46440595]
[1769480241783,5.9106712,124.66,124.59,3.24018597]
[1769480241975,2.359439,124.65,124.59,3.24018597]
[1769480242176,5.9106712,124.65,124.59,3.24018597]
[1769480244984,13.1392712,124.65,124.59,3.24018597]
[1769480245586,13.14231194,124.65,124.59,3.24018597]
[1769480246079,3.5512322,124.65,124.59,5.60266571]
[1769480249089,3.5512322,124.67,124.61,3.24018597]
[1769480249386,10.7784322,124.68,124.62,5.60266571]
[1769480250291,10.7784322,124.68,124.62,3.24018597]
[1769480251793,10.7784322,124.68,124.63,3.24018597]
[1769480251794,3.5512322,124.68,124.63,3.24018597]
[1769480251992,3.5512322,124.68,124.63,5.60266571]
[1769480257191,7.2262,124.69,124.64,3.24018597]
[1769480257398,7.2262,124.69,124.64,5.60266571]
[1769480257902,3.5512322,124.7,124.64,5.60266571]
[1769480260196,3.5512322,124.7,124.65,5.60266571]
[1769480261795,3.5512322,124.7,124.65,3.24018597]
[1769480261992,3.5512322,124.72,124.66,3.24018597]
[1769480262193,3.5512322,124.72,124.66,5.60266571]
[1769480264199,3.5512322,124.72,124.66,3.24018597]
[1769480268906,3.5512322,124.72,124.66,5.60266571]
[1769480272002,10.7756322,124.72,124.66,5.60266571]
[1769480273108,10.7756322,124.72,124.66,3.24018597]
[1769480273908,13.13811194,124.72,124.66,3.24018597]
[1769480276812,5.91371194,124.72,124.67,3.28881957]
[1769480279401,3.47005738,124.71,124.66,7.2276]
[1769480279603,5.83253712,124.71,124.66,7.2276]
[1769480280414,5.83253712,124.71,124.66,10.51641957]
[1769480284716,3.47005738,124.71,124.66,10.51641957]
[1769480285116,3.47005738,124.71,124.67,3.28881957]
[1769480285816,13.05633712,124.73,124.67,3.28881957]
[1769480286019,3.47005738,124.72,124.67,3.28881957]
[1769480290314,3.47005738,124.7,124.65,3.28881957]
[1769480293523,5.83253712,124.7,124.65,3.28881957]
[1769480293829,5.83253712,124.69,124.63,10.51821957]
[1769480294824,5.83253712,124.68,124.63,3.28881957]
[1769480295030,2.36247974,124.66,124.61,3.28881957]
[1769480295230,5.83253712,124.67,124.61,3.28881957]
[1769480296731,3.47005738,124.65,124.6,3.28881957]
[1769480296924,5.83253712,124.65,124.6,3.28881957]
[1769480299626,2.36247974,124.64,124.6,3.28881957]
[1769480301232,13.06103712,124.65,124.6,3.28881957]
[1769480301829,13.06103712,124.65,124.58,327.4123]
[1769480302034,13.06103712,124.65,124.58,330.63648221]
[1769480302331,10.69855738,124.65,124.59,3.22418221]
[1769480302530,13.06103712,124.65,124.59,3.22418221]
[1769480303936,2.36247974,124.64,124.59,3.22418221]
[1769480304432,10.69855738,124.65,124.59,3.22418221]
[1769480304433,13.06103712,124.65,124.59,3.22418221]
[1769480307640,13.06112128,124.65,124.59,3.22418221]
[1769480314746,3.47005738,124.65,124.59,12.81864611]
[1769480315446,5.83262128,124.65,124.59,10.45608221]
[1769480317745,3.48662269,124.64,124.59,10.45608221]
[1769480319050,3.48662269,124.63,124.59,3.22418221]
[1769480319641,5.84918659,124.63,124.58,320.18]
[1769480321548,5.84918659,124.63,124.57,10.45728221]
[1769480321549,5.84918659,124.62,124.57,3.22418221]
[1769480322352,13.07938659,124.62,124.57,3.22418221]
[1769480322748,10.71682269,124.62,124.57,3.22418221]
[1769480329459,3.28790946,124.61,124.57,3.22418221]
[1769480332662,3.28790946,124.61,124.55,13.08329367]
[1769480333564,3.28790946,124.61,124.56,3.48652977]
[1769480333964,3.28790946,124.61,124.56,5.84909367]